bitfinex-derivatives/quotes_ETHF0:USTF0_20250727
["timestamp","ask_amount","ask_price","bid_price","bid_amount"]
[1753580709265,0.53096,3765.4,3765.2,0.01859106]
[1753580709266,1.99848,3765.3,3765.2,0.01859106]
[1753580709473,1.7616,3765.3,3765.2,0.83428106]
[1753580709671,2.29258,3765.3,3765.2,1.03078106]
[1753580709871,2.29258,3765.3,3765.2,2.08898106]
[1753580710064,2.29258,3765.3,3765.2,2.29158106]
[1753580711174,2.29258,3765.3,3765.2,1.76059106]
[1753580711671,2.29258,3765.3,3765.2,1.00139106]
[1753580712075,1.7616,3765.3,3765.2,1.00139106]
[1753580712262,2.29258,3765.3,3765.2,1.00139106]
[1753580712468,2.29258,3765.3,3765.2,0.30329106]
[1753580712663,2.29258,3765.3,3765.2,0.01859106]
[1753580713168,5.50038,3765.3,3765.2,0.01859106]
[1753580714078,1.23983,3764.9,3764.8,3.2078]
[1753580714269,23.45163,3764.9,3764.8,3.2078]
[1753580714577,23.45163,3764.9,3764.8,3.4925]
[1753580715272,23.45163,3764.9,3764.8,4.02355]
[1753580715674,23.45163,3764.9,3764.8,3.4925]
[1753580715873,23.45163,3764.9,3764.8,3.689]
[1753580716373,23.45163,3764.9,3764.8,4.22005]
[1753580716869,23.45163,3764.9,3764.8,3.689]
[1753580717673,0.7088,3764.7,3764.6,0.2847]
[1753580717977,23.45266,3764.7,3764.6,0.2847]
[1753580721278,2.2927,3764.4,3764.3,0.2847]
[1753580721475,23.4537,3764.4,3764.3,0.2847]
[1753580721776,23.4537,3764.4,3764.0,1.742]
[1753580721777,2.29275,3764.1,3764.0,1.742]
[1753580721974,21.6597,3764.1,3764.0,2.27316]
[1753580722173,21.3697,3764.1,3764.0,2.27316]
[1753580723473,21.6597,3764.1,3764.0,2.27316]
[1753580723779,23.15965,3764.1,3764.0,2.27316]
[1753580724480,22.6285,3764.1,3764.0,2.27316]
[1753580724683,23.45375,3764.1,3764.0,1.742]
[1753580726083,1.0027,3764.7,3764.6,1.2404]
[1753580726284,1.2399,3764.4,3764.3,1.1549]
[1753580726483,23.4545,3764.4,3764.3,0.3991]
[1753580726685,23.4545,3764.4,3764.3,1.1549]
[1753580726884,23.4545,3764.4,3764.3,1.742]
[1753580728479,23.4545,3764.4,3764.3,0.2847]
[1753580728681,1.22665,3764.1,3764.0,1.4232]
[1753580728880,23.43955,3764.1,3764.0,1.4232]
[1753580729183,23.43955,3764.1,3764.0,1.7084]
[1753580729484,3.2078,3764.4,3764.3,1.7084]
[1753580729684,26.3534,3764.4,3764.3,1.7084]
[1753580730082,26.6473,3764.4,3764.3,1.7084]
[1753580731179,26.6473,3764.4,3764.3,0.2852]
[1753580732385,26.6473,3764.4,3764.3,0.4814]
[1753580732684,26.6473,3764.4,3764.3,1.7084]
[1753580733185,2.27655,3764.1,3764.0,0.2852]
[1753580733488,23.43955,3764.1,3764.0,0.2852]
[1753580733785,1.22667,3763.9,3763.8,0.4818072]
[1753580733982,1.22667,3763.9,3763.3,0.9969]
[1753580733983,2.27664,3763.4,3763.3,0.9969]
[1753580734184,2.27664,3763.4,3762.2,1.61253589]
[1753580734185,0.53134,3762.8,3762.7,0.6873]
[1753580734483,0.53134,3762.8,3762.7,1.93014]
[1753580734484,0.53133,3762.8,3762.7,1.93014]
[1753580734788,0.53133,3762.8,3762.7,1.7084]
[1753580734983,22.45032,3762.9,3762.7,2.23974]
[1753580735286,22.45032,3762.9,3762.8,1.7084]
[1753580735985,22.64532,3762.9,3762.8,1.7084]
[1753580736182,23.14582,3762.9,3762.8,1.7084]
[1753580739285,23.14582,3762.9,3762.8,1.2023]
[1753580739590,23.43972,3762.9,3762.8,1.7084]
[1753580742479,23.14582,3762.9,3762.8,1.7084]
[1753580744090,23.43972,3762.9,3762.8,1.7084]
[1753580744981,3.2078,3763.0,3762.8,1.7084]
[1753580745187,1.9827,3763.7,3763.6,0.6873]
[1753580745387,23.1507,3763.7,3763.6,1.7084]
[1753580745982,1.0238,3763.7,3763.6,1.7084]
[1753580746187,3.2078,3763.9,3763.8,1.21849]
[1753580746388,24.3758,3763.9,3763.8,2.23959]
[1753580746993,24.90697,3763.9,3763.8,2.23959]
[1753580747192,24.3758,3763.9,3763.8,2.23959]
[1753580747589,24.90697,3763.9,3763.8,2.23959]
[1753580747787,24.5708,3763.9,3763.8,2.23959]
[1753580748193,26.65237,3763.9,3763.8,1.7084]
[1753580748496,26.65237,3763.9,3763.8,0.9725]
[1753580748788,26.65237,3763.9,3763.8,0.2852]
[1753580748990,2.27662,3763.6,3763.5,0.4814]
[1753580749193,1.22676,3763.3,3763.2,1.7084]
[1753580749495,23.44366,3763.3,3763.2,1.7084]
[1753580751796,1.22677,3763.2,3763.1,3.183]
[1753580751985,2.27667,3763.2,3763.1,3.4682]
[1753580752185,0.53129,3763.1,3763.0,3.2078]
[1753580752391,1.9828,3763.0,3762.9,0.2852]
[1753580752999,2.2767,3763.0,3762.9,0.2852]
[1753580753597,2.2767,3763.0,3762.9,0.4814]
[1753580753792,2.2767,3763.0,3762.9,1.3988]
[1753580753993,21.6983,3763.0,3762.9,1.7084]
[1753580754595,21.167,3763.0,3762.9,2.23972]
[1753580754796,0.53124,3763.4,3763.3,1.7084]
[1753580754996,21.69824,3763.4,3763.3,1.7084]
[1753580755296,0.53124,3763.4,3763.3,1.7084]
[1753580755494,0.53124,3763.4,3763.3,2.23966]
[1753580755693,21.69824,3763.4,3763.3,1.7084]
[1753580755896,21.69824,3763.4,3763.3,2.23966]
[1753580755897,21.167,3763.4,3763.3,2.23966]
[1753580756797,0.756,3764.0,3763.7,1.7084]
[1753580757000,21.69818,3763.9,3763.8,1.7084]
[1753580757201,21.167,3763.9,3763.8,1.7084]
[1753580757400,21.167,3763.9,3763.8,2.23959]
[1753580757596,0.5313,3763.1,3762.8,0.2901]
[1753580757809,1.77409,3763.1,3763.0,1.7732]
[1753580757999,23.20749,3763.1,3763.0,1.7732]
[1753580759599,23.49009,3763.1,3763.0,1.0268]
[1753580759808,23.49009,3763.1,3763.0,0.5171]
[1753580760002,1.98053,3762.8,3762.7,1.7732]
[1753580760202,23.48613,3762.8,3762.7,1.7732]
[1753580761406,23.20353,3762.8,3762.7,1.7732]
[1753580761806,23.20353,3762.8,3762.7,1.4831]
[1753580762404,23.20353,3762.8,3762.7,1.7732]
[1753580763609,23.48613,3762.8,3762.7,1.7732]
[1753580764098,22.9548,3762.8,3762.2,0.55000589]
[1753580764302,2.2632,3762.3,3762.2,0.01860589]
[1753580764502,23.5222,3762.3,3762.2,0.01860589]
[1753580764702,24.31489144,3762.3,3762.2,0.01860589]
[1753580765509,24.31489144,3762.3,3762.2,0.33010589]
[1753580765710,2.77329144,3762.3,3762.2,1.79180589]
[1753580765911,23.2386,3762.3,3762.2,1.79180589]
[1753580766108,23.5212,3762.3,3762.2,0.33010589]
[1753580766305,23.5212,3762.3,3762.2,0.01860589]
[1753580766701,1.9806,3762.3,3762.2,1.79180589]
[1753580766906,21.9948,3762.3,3762.2,1.79180589]
[1753580767407,21.4634,3762.3,3762.2,2.32321589]
[1753580767610,21.9948,3762.3,3762.2,1.79180589]
[1753580767807,0.2064,3762.3,3762.2,2.32321589]
[1753580768008,3.4994,3762.5,3762.4,2.30459]
[1753580768202,24.7704,3762.5,3762.4,2.30459]
[1753580768512,25.50817,3762.5,3762.4,1.7732]
[1753580768812,26.45937,3762.5,3762.4,1.7732]
[1753580769308,0.7548,3762.8,3762.4,2.30459]
[1753580769513,21.273,3762.7,3762.6,0.7153]
[1753580769811,21.4794,3762.7,3762.6,1.7732]
[1753580770006,22.7222,3762.7,3762.6,2.30456]
[1753580770207,1.98054,3762.7,3762.6,1.7732]
[1753580770407,23.25354,3762.7,3762.6,2.30456]
[1753580770606,23.25354,3762.7,3762.6,1.7732]
[1753580771111,22.7222,3762.7,3762.6,1.7732]
[1753580771306,22.7192,3762.7,3762.6,2.30456]
[1753580771610,23.25054,3762.7,3762.6,1.7732]
[1753580772607,23.25054,3762.7,3762.6,2.30456]
[1753580772813,21.4754,3762.7,3762.6,2.30456]
[1753580773310,22.2252,3762.7,3762.6,2.30456]
[1753580773705,22.75654,3762.7,3762.6,2.30456]
[1753580774108,3.9626,3763.0,3762.8,0.53133]
[1753580774314,4.70031,3763.0,3762.9,1.7732]
[1753580774515,25.435,3763.0,3762.9,2.30452]
[1753580775013,25.923,3763.0,3762.9,2.30452]
[1753580775214,2.26313,3762.9,3762.8,0.3115]
[1753580775510,2.26313,3762.9,3762.8,1.7732]
[1753580776108,1.98053,3762.9,3762.8,1.7732]
[1753580776814,1.98053,3762.9,3762.8,2.30453]
[1753580777011,1.98053,3762.9,3762.8,1.7732]
[1753580779209,0.53136,3762.6,3762.5,0.7464]
[1753580779416,23.51716,3762.6,3762.5,1.7732]
[1753580781211,23.23456,3762.6,3762.5,1.7732]
[1753580783012,23.51716,3762.6,3762.5,1.4831]
[1753580783515,23.51716,3762.6,3762.2,0.33010589]
[1753580783516,2.2632,3762.3,3762.2,0.33010589]
[1753580783716,23.5202,3762.3,3762.2,0.33010589]
[1753580785017,23.5202,3762.3,3762.2,0.53570589]
[1753580785319,23.5202,3762.3,3762.2,1.59190589]
[1753580785616,23.5202,3762.3,3762.2,0.01860589]
[1753580786209,23.5202,3762.3,3761.8,0.50821172]
[1753580786210,2.25606,3761.9,3761.8,1.72e-06]
[1753580786414,26.72286,3761.9,3761.8,1.72e-06]
[1753580792319,27.53230163,3761.9,3761.8,1.72e-06]
[1753580793325,1.4642,3760.7,3760.6,1.7397]
[1753580793523,23.55533,3760.7,3760.6,1.0222]
[1753580793718,23.55533,3760.7,3760.6,1.0011]
[1753580793925,23.27983,3760.7,3760.6,1.7397]
[1753580795128,0.53168,3760.3,3760.2,3.4914]
[1753580795316,0.53168,3760.3,3759.8,0.93541636]
[1753580795317,0.53172,3760.0,3759.9,0.7386]
[1753580795521,23.59922,3760.0,3759.9,1.4561]
[1753580795821,2.29124,3759.9,3759.8,0.70891636]
[1753580796027,5.49904,3759.9,3759.8,1.65291636]
[1753580797223,5.49904,3759.9,3759.8,1.93651636]
[1753580797426,5.49904,3759.9,3759.8,0.19681636]
[1753580797724,26.81904,3759.9,3759.8,1.93651636]
[1753580798830,26.81904,3759.9,3759.8,0.99251636]
[1753580799525,26.81904,3759.9,3759.8,0.19681636]
[1753580799929,26.81904,3759.9,3759.8,0.40501636]
[1753580800325,26.81904,3759.9,3759.8,0.19681636]
[1753580801730,26.81904,3759.9,3759.2,0.01862074]
[1753580801731,2.29132,3759.3,3759.2,0.01862074]
[1753580801932,26.81912,3759.3,3759.2,0.01862074]
[1753580802831,26.81912,3759.3,3759.2,1.75832074]
[1753580802832,26.84512,3759.3,3759.2,1.75832074]
[1753580803432,25.08462,3759.3,3759.2,1.75832074]
[1753580803828,25.4764117,3759.3,3759.2,1.75832074]
[1753580804031,26.8358117,3759.3,3759.2,1.47472074]
[1753580804231,25.4744117,3759.3,3759.2,1.75832074]
[1753580804734,26.8338117,3759.3,3759.2,1.75832074]
[1753580805537,26.8478117,3759.3,3759.2,1.25752074]
[1753580805734,26.8478117,3759.3,3759.2,1.75832074]
[1753580806336,5.4908117,3759.3,3759.2,1.75832074]
[1753580806639,26.5497117,3759.3,3759.2,1.75832074]
[1753580806833,26.8428117,3759.3,3759.2,1.75832074]
[1753580807735,4.7253117,3759.3,3759.2,1.75832074]
[1753580807937,25.7802117,3759.3,3759.2,1.75832074]
[1753580808137,26.8388117,3759.3,3759.2,1.75832074]
[1753580808338,26.8368117,3759.3,3759.2,1.75832074]
[1753580809038,26.8368117,3759.3,3759.2,1.46292074]
[1753580809341,26.8368117,3759.3,3759.2,0.01862074]
[1753580809727,26.8368117,3759.3,3759.2,1.75832074]
[1753580811341,26.8368117,3759.3,3759.2,1.46292074]
[1753580811536,26.8368117,3759.3,3759.2,0.01862074]
[1753580811840,26.8368117,3759.3,3759.2,0.81432074]
[1753580812435,26.8368117,3759.3,3759.2,1.75832074]
[1753580812936,26.8288117,3759.3,3759.2,0.01862074]
[1753580813135,26.8288117,3759.3,3759.2,0.53072074]
[1753580813332,26.8278117,3759.3,3759.2,1.75832074]
[1753580813736,26.8278117,3759.3,3759.2,1.46292074]
[1753580814940,26.8278117,3759.3,3759.2,1.75832074]
[1753580815441,26.8278117,3759.3,3759.2,1.25752074]
[1753580815839,26.8278117,3759.3,3759.2,1.75832074]
[1753580816043,27.63350656,3759.3,3759.2,1.75832074]
[1753580816239,27.62650656,3759.3,3759.2,1.75832074]
[1753580817947,25.0543117,3759.3,3759.2,1.75832074]
[1753580818147,3.7313117,3759.3,3759.2,1.75832074]
[1753580818346,25.86118498,3759.3,3759.2,1.75832074]
[1753580819047,25.86318498,3759.3,3759.2,1.75832074]
[1753580819242,25.86018498,3759.3,3759.2,1.75832074]
[1753580820345,4.01467328,3759.3,3759.2,2.29016074]
[1753580820544,42.03656,3759.8,3759.7,1.716]
[1753580820844,63.36356,3759.8,3759.7,1.716]
[1753580821235,2.2955,3759.5,3759.4,1.4258]
[1753580821441,0.53179,3759.6,3759.4,0.6775]
[1753580821648,0.53179,3759.6,3759.5,1.716]
[1753580821846,21.86479,3759.6,3759.5,1.716]
[1753580822044,0.53178,3759.7,3759.6,0.7485]
[1753580822241,42.03656,3759.8,3759.7,1.716]
[1753580822441,62.8408,3759.8,3759.7,1.716]
[1753580822744,63.37255,3759.8,3759.7,1.716]
[1753580823146,63.66935,3759.8,3759.7,1.716]
[1753580826747,62.8408,3759.8,3759.7,2.24777]
[1753580827250,41.5048,3759.8,3759.7,2.24777]
[1753580827450,62.8268,3759.8,3759.7,2.24777]
[1753580827646,1.42901375,3760.1,3760.0,0.53172]
[1753580827943,3.2078,3760.6,3760.5,1.1358]
[1753580828250,24.5348,3760.6,3760.5,2.24765]
[1753580828944,3.2078,3760.6,3760.5,7.24765]
[1753580829139,24.5378,3760.6,3760.5,7.24765]
[1753580830548,24.5378,3760.6,3760.5,2.24765]
[1753580832247,3.2078,3760.6,3760.5,2.24765]
[1753580832447,24.5288,3760.6,3760.5,2.24765]
[1753580832648,3.2078,3760.6,3760.5,2.24765]
[1753580832852,24.5258,3760.6,3760.5,2.24765]
[1753580833344,38.6048,3760.9,3760.8,0.53161]
[1753580833550,39.40938134,3760.9,3760.8,2.24641]
[1753580834050,60.72738134,3760.9,3760.8,2.24641]
[1753580834847,61.25898134,3760.9,3760.8,2.24641]
[1753580835146,60.72738134,3760.9,3760.8,2.24641]
[1753580835349,59.9228,3760.9,3760.8,2.24641]
[1753580836155,59.9228,3760.9,3760.3,1.32921]
[1753580836156,1.7637,3760.4,3760.3,2.24647]
[1753580836349,23.0737,3760.4,3760.3,2.24647]
[1753580838346,22.7755,3760.4,3760.3,2.24647]
[1753580838651,22.3055,3760.4,3760.3,1.4246]
[1753580838857,23.0737,3760.4,3760.3,1.4246]
[1753580839153,23.0737,3760.4,3759.9,0.7471]
[1753580839355,1.7637,3760.0,3759.9,1.1346]
[1753580839659,23.0777,3760.0,3759.9,1.95634]
[1753580840654,23.0777,3760.0,3759.9,2.24654]
[1753580841653,1.2937,3760.3,3760.2,1.2092]
[1753580841859,23.0827,3760.3,3760.2,2.2465]
[1753580842955,23.61438,3760.3,3760.2,1.9563]
[1753580843456,23.0827,3760.3,3760.2,1.4992]
[1753580843848,1.7637,3760.3,3760.2,1.4992]
[1753580844152,23.0707,3760.3,3760.2,1.4992]
[1753580844556,23.0707,3760.3,3760.2,1.9563]
[1753580845655,23.0707,3760.3,3760.2,0.6775]
[1753580846652,23.0707,3760.3,3760.2,1.1346]
[1753580846956,23.0707,3760.3,3760.2,1.4246]
[1753580847353,23.60238,3760.3,3760.2,1.4246]
[1753580848752,23.0707,3760.3,3760.2,1.7208]
[1753580848954,23.0707,3760.3,3760.2,2.2525]
[1753580849255,22.7725,3760.3,3760.2,2.2525]
[1753580849456,22.7595,3760.3,3760.2,2.2525]
[1753580849657,22.0887,3760.3,3760.2,2.2525]
[1753580849857,0.7947,3760.3,3760.2,2.2525]
[1753580850156,4.0346,3760.5,3760.4,2.28197]
[1753580850357,21.295,3760.5,3760.4,0.7056]
[1753580850557,21.295,3760.5,3760.4,2.28197]
[1753580850960,21.6042,3760.5,3760.4,2.28197]
[1753580851155,22.7606,3760.5,3760.4,2.28197]
[1753580851353,23.0515,3760.5,3760.4,1.1444]
[1753580851558,23.0515,3760.5,3760.4,1.4541]
[1753580852160,23.0515,3760.5,3760.4,2.28197]
[1753580853058,1.4656,3760.5,3760.4,2.28197]
[1753580853261,22.1168,3760.5,3760.4,2.28197]
[1753580853956,21.29,3760.5,3760.4,2.28197]
[1753580854663,38.308,3760.9,3760.7,1.7503]
[1753580854866,38.308,3760.9,3760.8,1.4541]
[1753580855159,38.308,3760.9,3760.8,1.98571]
[1753580855160,61.97687826,3760.9,3760.8,1.98571]
[1753580855364,61.44527826,3760.9,3760.8,1.98571]
[1753580855861,61.97687826,3760.9,3760.8,1.98571]
[1753580856161,61.44527826,3760.9,3760.8,1.98571]
[1753580856461,61.44527826,3760.9,3760.8,1.21871]
[1753580857057,61.97687826,3760.9,3760.8,1.67601]
[1753580857561,61.44527826,3760.9,3760.8,1.67601]
[1753580857763,60.6387,3760.9,3760.8,1.98571]
[1753580857959,60.3478,3760.9,3760.8,2.28191]
[1753580858261,60.6337,3760.9,3760.8,2.28191]
[1753580859358,39.0598,3760.9,3760.8,2.28191]
[1753580859558,59.8972,3760.9,3760.8,2.28191]
[1753580860260,60.6307,3760.9,3760.8,2.28191]
[1753580860455,0.3092,3760.9,3760.8,2.28191]
[1753580860656,0.5176,3761.6,3761.5,1.2422]
[1753580860868,22.60168654,3761.6,3761.5,2.28181]
[1753580861165,23.84058654,3761.6,3761.5,2.28181]
[1753580863864,23.54968654,3761.6,3761.5,2.28181]
[1753580864163,2.27268654,3761.6,3761.5,2.28181]
[1753580864664,22.07608654,3761.6,3761.5,2.28181]
[1753580865166,22.38528654,3761.6,3761.5,2.28181]
[1753580865569,3.7211,3761.8,3761.7,2.28178]
[1753580865763,0.5133,3761.8,3761.7,2.28178]
[1753580866170,0.2,3761.9,3761.8,2.28177]
[1753580866366,21.7722,3761.9,3761.8,2.28177]
[1753580866567,22.7324,3761.9,3761.8,2.28177]
[1753580866773,0.5092,3761.9,3761.8,2.28177]
[1753580867073,21.7722,3761.9,3761.8,2.28177]
[1753580867278,21.463,3761.9,3761.8,2.28177]
[1753580867477,0.2,3761.9,3761.8,2.28177]
[1753580868074,1.7565,3762.5,3762.4,1.47829]
[1753580868265,23.0245,3762.5,3762.4,0.53139]
[1753580868774,22.51317,3762.5,3762.3,0.53139]
[1753580869068,22.51317,3762.5,3762.1,3.2078]
[1753580869069,2.28791,3762.2,3762.1,3.8949]
[1753580869268,0.7138,3761.6,3761.5,0.8532]
[1753580869474,2.288,3761.6,3761.5,0.1984]
[1753580869775,1.7565,3761.4,3761.3,1.98563]
[1753580869968,23.55903,3761.4,3761.3,0.1984]
[1753580870277,23.55903,3761.4,3760.9,3.2078]
[1753580870278,2.28808,3761.0,3760.9,3.2078]
[1753580870467,23.56008,3761.0,3760.8,0.53161]
[1753580870666,0.7138,3760.8,3760.7,0.73002]
[1753580870867,0.7138,3760.8,3760.6,0.53164]
[1753580871077,23.0335,3760.7,3760.6,0.92754]
[1753580871774,23.0335,3760.7,3760.6,1.21874]
[1753580872072,23.0335,3760.7,3760.6,1.52844]
[1753580872277,23.0335,3760.7,3760.6,1.98574]
[1753580873774,23.56513,3760.7,3760.6,1.4541]
[1753580874073,23.0335,3760.7,3760.6,1.98574]
[1753580875673,23.0335,3760.7,3760.6,2.28194]
[1753580877176,23.0335,3760.7,3760.6,0.53164]
[1753580877375,1.23255,3760.5,3760.4,3.2078]
[1753580877572,23.54145,3760.5,3760.4,3.2078]
[1753580878073,23.54145,3760.5,3760.4,3.73947]
[1753580879070,22.7181,3760.5,3760.4,5.50657]
[1753580879373,23.0138,3760.5,3760.4,5.50657]
[1753580882072,1.7468,3760.5,3760.4,5.50657]
[1753580882473,23.0088,3760.5,3760.4,5.50657]
[1753580883375,23.0088,3760.5,3760.4,5.20417]
[1753580884277,22.7131,3760.5,3760.4,5.50657]
[1753580884474,0.4778,3760.5,3760.4,5.50657]
[1753580884776,0.7855,3760.7,3760.6,2.29874]
[1753580884977,22.0415,3760.7,3760.6,2.29874]
[1753580885475,23.0028,3760.7,3760.6,0.53164]
[1753580885676,1.7468,3760.7,3760.6,0.53164]
[1753580885877,23.0028,3760.7,3760.6,0.53164]
[1753580886374,0.7009,3760.5,3760.4,3.6087]
[1753580886572,23.0028,3760.5,3760.4,3.94596]
[1753580887173,23.53445,3760.5,3760.4,3.4143]
[1753580887578,23.0028,3760.5,3760.4,3.94597]
[1753580888077,23.0028,3760.5,3760.4,4.44407]
[1753580888478,23.0028,3760.5,3760.4,5.20417]
[1753580889379,23.0028,3760.5,3760.4,5.50657]
[1753580889674,1.7468,3760.8,3760.7,2.29873]
[1753580889879,22.9988,3760.8,3760.7,2.29873]
[1753580892079,22.7031,3760.8,3760.7,2.29873]
[1753580892474,22.6981,3760.8,3760.7,2.29873]
[1753580892876,22.9938,3760.8,3760.7,2.29873]
[1753580893275,23.52541,3760.8,3760.7,1.99633]
[1753580893782,22.9938,3760.8,3760.7,1.99633]
[1753580895480,0.4642,3761.0,3760.7,0.7036]
[1753580895776,0.4642,3761.0,3760.4,4.53697]
[1753580895777,0.286,3761.0,3760.9,5.2047]
[1753580895981,21.53,3761.0,3760.9,5.2047]
[1753580896182,22.4937,3761.0,3760.9,5.5071]
[1753580896382,22.9908,3761.0,3760.9,5.5071]
[1753580898982,1.7468,3761.0,3760.9,5.5071]
[1753580899183,22.9848,3761.0,3760.9,5.5071]
[1753580899579,0.2957,3761.3,3761.2,0.53155]
[1753580899779,21.521,3761.3,3761.2,2.29925]
[1753580900596,0.4642,3761.4,3761.2,2.29925]
[1753580900597,0.286,3761.7,3761.6,0.5315]
[1753580900792,22.9808,3761.7,3761.6,1.7677]
[1753580900996,22.9808,3761.7,3761.6,1.4653]
[1753580901396,22.9808,3761.7,3761.6,1.9968]
[1753580901596,22.9808,3761.7,3761.6,1.4653]
[1753580902994,23.51228,3761.7,3761.6,1.4653]
[1753580903997,22.9808,3761.7,3761.6,1.4653]
[1753580904190,23.51228,3761.7,3761.6,1.4653]
[1753580905089,0.4995,3761.1,3761.0,3.2078]
[1753580905287,22.9738,3761.1,3761.0,3.5115]
[1753580905492,22.9738,3761.1,3761.0,4.6731]
[1753580905688,22.9738,3761.1,3761.0,5.20468]
[1753580906498,22.9718,3761.1,3761.0,5.50708]
[1753580907597,22.9718,3761.1,3761.0,5.20468]
[1753580908897,23.50337,3761.1,3761.0,3.2078]
[1753580909200,22.9678,3761.1,3761.0,5.48548]
[1753580909790,0.9955,3761.4,3761.3,1.21844]
[1753580909997,22.2167,3761.4,3761.3,2.27764]
[1753580910196,22.9909,3761.4,3761.3,2.27764]
[1753580910595,22.9929,3761.4,3761.3,2.27764]
[1753580911301,22.9929,3761.4,3761.3,1.98574]
[1753580912501,22.9929,3761.4,3761.3,2.27764]
[1753580913500,0.7977,3761.4,3761.3,2.27764]
[1753580913700,22.0187,3761.4,3761.3,2.27764]
[1753580914900,0.7977,3761.4,3761.3,2.27764]
[1753580915108,1.7649,3761.7,3761.6,2.2776]
[1753580915404,22.9839,3761.7,3761.6,2.2776]
[1753580918610,22.9839,3761.7,3761.6,1.9857]
[1753580919006,23.51538,3761.7,3761.6,1.9857]
[1753580919407,22.9839,3761.7,3761.6,1.9857]
[1753580920511,22.9839,3761.7,3761.6,2.2776]
[1753580920707,0.3025,3762.1,3762.0,1.98564]
[1753580920910,21.251,3762.3,3762.2,2.27751]
[1753580921112,0.7742,3762.8,3762.4,2.27749]
[1753580921408,22.0537,3762.8,3762.7,5.48524]
[1753580921801,22.2467,3762.8,3762.7,5.48524]
[1753580922102,23.0209,3762.8,3762.7,5.48524]
[1753580922505,23.0209,3762.8,3762.7,5.19334]
[1753580922702,2.29623,3762.8,3762.5,0.53136]
[1753580922905,1.298,3762.6,3762.5,0.53136]
[1753580923208,1.7649,3762.4,3762.3,3.2078]
[1753580923402,1.7649,3761.9,3761.8,3.2078]
[1753580923608,0.6882,3761.6,3761.4,0.4576]
[1753580923910,0.6882,3761.6,3761.5,0.73701]
[1753580924113,0.6882,3761.6,3761.5,1.23851]
[1753580924307,1.7649,3761.6,3761.5,1.69611]
[1753580924512,1.7649,3761.6,3761.5,1.1646]
[1753580924714,1.7649,3761.6,3761.5,1.69611]
[1753580924910,1.7649,3761.6,3761.5,0.707]
[1753580925105,2.2964,3761.6,3761.3,3.73933]
[1753580925310,1.7649,3761.5,3761.4,0.53152]
[1753580927306,1.7649,3761.5,3761.4,0.73702]
[1753580927511,1.7649,3761.5,3761.4,0.92882]
[1753580927713,1.7649,3761.5,3761.4,1.98572]
[1753580928315,1.7649,3761.5,3761.4,2.27762]
[1753580929219,3.73923,3762.1,3761.3,3.2078]
[1753580929220,0.7977,3761.8,3761.7,2.27758]
[1753580929420,1.2646,3762.0,3761.9,2.27756]
[1753580929714,1.4576,3762.6,3762.5,1.96777]
[1753580929917,23.82941824,3762.6,3762.5,2.27747]
[1753580930216,23.82941824,3762.6,3762.5,1.52797]
[1753580930411,23.82941824,3762.6,3762.5,1.98557]
[1753580930616,23.0229,3762.6,3762.5,1.98557]
[1753580932116,23.0229,3762.6,3762.5,0.53137]
[1753580932315,23.82931295,3762.6,3762.5,0.53137]
[1753580932821,23.0229,3762.6,3762.5,1.98557]
[1753580933021,23.0199,3762.6,3762.5,2.27747]
[1753580933216,23.0199,3762.6,3762.5,1.98557]
[1753580934523,23.0199,3762.6,3762.5,1.4542]
[1753580934723,0.6882,3762.4,3762.3,3.73919]
[1753580934925,23.0169,3762.4,3762.3,3.73919]
[1753580935120,23.0169,3762.4,3762.3,3.2078]
[1753580935121,23.54829,3762.4,3762.3,3.2078]
[1753580936119,0.6882,3762.0,3761.9,3.2078]
[1753580936320,0.6882,3762.0,3761.8,0.3097]
[1753580936321,1.21964,3762.0,3761.8,0.3097]
[1753580936520,1.7649,3761.9,3761.8,0.84117]
[1753580936716,21.9412,3761.9,3761.6,0.4576]
[1753580937019,1.7649,3761.6,3761.5,4.4463]
[1753580937219,1.7649,3761.6,3761.5,5.1935]
[1753580937923,1.7649,3761.6,3761.5,5.4842]
[1753580939026,1.7649,3761.6,3761.5,5.48421]
[1753580939717,2.2964,3761.6,3761.5,4.9527]
[1753580939923,2.2964,3761.6,3761.5,3.4133]
[1753580940627,2.2964,3761.6,3761.5,3.7274]
[1753580940819,2.2964,3761.6,3761.5,3.2078]
[1753580941824,23.5464,3761.6,3761.5,3.2078]
[1753580942026,23.5464,3761.6,3761.5,3.3965]
[1753580942728,23.5464,3761.6,3761.5,3.9064]
[1753580943026,23.5464,3761.6,3761.5,3.5923]
[1753580943223,23.5464,3761.6,3761.5,3.9064]
[1753580943424,23.5464,3761.6,3761.5,4.6631]
[1753580945526,23.5464,3761.6,3761.5,1.4553]
[1753580946524,23.5464,3761.6,3761.5,0.6986]
[1753580946830,23.5464,3761.6,3761.5,0.1887]
[1753580947331,2.27344,3761.3,3761.2,1.4553]
[1753580947724,2.27344,3761.3,3761.2,1.746]
[1753580949333,1.1439,3761.7,3761.6,2.27749]
[1753580949527,22.3789,3761.7,3761.6,1.746]
[1753580949727,22.679,3761.7,3761.6,1.746]
[1753580950026,22.9769,3761.7,3761.6,2.2775]
[1753580950722,0.7936,3761.7,3761.6,2.2775]
[1753580950925,1.52983,3762.1,3762.0,1.746]
[1753580951123,22.76383,3762.1,3762.0,2.27744]
[1753580951330,23.50733,3762.1,3762.0,2.27744]
[1753580951530,23.50733,3762.1,3762.0,1.746]
[1753580951926,23.50733,3762.1,3762.0,1.4553]
[1753580952532,22.9759,3762.1,3762.0,2.27744]
[1753580952833,22.678,3762.1,3762.0,2.27744]
[1753580953231,23.50733,3762.1,3762.0,1.746]
[1753580953533,23.50533,3762.1,3762.0,2.27744]